Cogmind - Beta 12 --- EXPLORER MODE // 2024.01.05 @ 15:06:15 // AFD2020/Player2 Player: Quiddy Result: Core destroyed Performance ------------- Evolutions (0) 0 Regions Visited (1) 200 Robots Destroyed (2) 10 Value Destroyed (81) 81 Prototype IDs (0) 0 Alien Tech Used (0) 0 Bonus (35) 35 TOTAL SCORE: 326 Bonus ------- Follower Combat Kills 35 Cogmind --------- Core Integrity 0/250 Matter 289/300 Energy 250/250 System Corruption 0% Temperature Cool (10) Movement Walking (190) Ox1 Location -10/Materials Parts ------- > --- POWER (1) -------- Ion Engine > --- PROPULSION (2) --- Aluminum Leg Aluminum Leg > --- UTILITY (3) ------ Large Storage Unit Core Shielding > --- WEAPON (2) ------- Small Laser Light Assault Rifle > --- INVENTORY (15) --- Light Ion Engine Light Treads Light Treads Medium Storage Unit Targeting Computer ECM Suite Utility Shielding Light Assault Rifle Peak State ------------ > --- POWER ------------ Ion Engine > --- PROPULSION ------- Aluminum Leg Aluminum Leg > --- UTILITY ---------- Medium Storage Unit Core Shielding > --- WEAPON ----------- Small Laser Light Assault Rifle > --- INVENTORY -------- Light Ion Engine Light Treads Light Treads Targeting Computer ECM Suite Utility Shielding Light Assault Rifle [Rating: 7] Favorites ----------- Power Ion Engine Engine Ion Engine Propulsion Aluminum Leg Leg Aluminum Leg Utility Core Shielding Storage Medium Storage Unit Protection Core Shielding Weapon Small Laser Energy Gun Small Laser Ballistic Gun Light Assault Rifle Build | -11 -10 ------- Run | Jun Mat Slots Evolved 1 | . 1 Power . | . . Propulsion . | . . Utility 1 | . 1 Weapon . | . . Parts Attached 1 | . 1 Power . | . . Engine . | . . Core . | . . Reactor . | . . Propulsion . | . . Treads . | . . Leg . | . . Wheel . | . . Hover . | . . Flight . | . . Utility 1 | . 1 Device . | . . Storage 1 | . 1 Processor . | . . Hackware . | . . Protection . | . . Artifact . | . . Weapon . | . . Energy Gun . | . . Energy Cannon . | . . Ballistic Gun . | . . Ballistic Cannon . | . . Launcher . | . . Special Weapon . | . . Impact Weapon . | . . Slashing Weapon . | . . Piercing Weapon . | . . Special Melee Weapon . | . . Unidentified Prototypes . | . . Parts Lost . | . . Power . | . . Propulsion . | . . Utility . | . . Weapon . | . . Highest Loss Streak . | . . To Critical Strikes . | . . Average Slot Usage (%) 87 | . 87 Engine 12 | . 12 Leg 25 | . 25 Storage 12 | . 12 Protection 12 | . 12 Energy Gun 12 | . 12 Ballistic Gun 12 | . 12 Naked Turns . | . . Heaviest Build 28 | 18 28 Greatest Support 20 | 20 20 Greatest Overweight (x) 1 | . 1 Average Overweight (x) . | . . Largest Inventory Capacity 15 | . 15 Average Capacity 11 | . 11 Most Carried 8 | . 8 Average Carried 7 | . 7 Final Capacity 15 | 10 15 Final Carried 8 | 7 8 Class Distribution -------------------- 100% | Hacker-Mutant Dominant Class ---------------- Hacker-Mutant | -10/Materials Resources | -11 -10 ----------- Run | Jun Mat Matter Collected 205 | 200 5 Remotely . | . . Salvage Created 94 | . 94 Parts 4 | . 4 Haulers Intercepted . | . . Recyclers Shooed . | . . Parts Field Recycled . | . . Retrieved Matter . | . . Parts Self-Destructed . | . . Prevented . | . . Kills | -11 -10 ------- Run | Jun Mat Combat Hostiles Destroyed 2 | . 2 Guns 2 | . 2 Classes Destroyed 1 | . 1 Grunt 2 | . 2 Best Kill Streak 2 | . 2 Combat Bots Only 2 | . 2 Max Kills in Single Turn 1 | . 1 Gunslinging . | . . Exploded . | . . Melee . | . . Uniques/NPCs Destroyed . | . . Combat | -11 -10 -------- Run | Jun Mat Damage Taken 46 | . 46 Core 8 | . 8 Absorbed by Shields . | . . Redirected to Shielding 1 | . 1 Core Remaining (%) 100 | 100 . Volleys Fired 6 | . 6 Largest 2 | . 2 Hottest 60 | . 60 Shots Fired 12 | . 12 Gun 12 | . 12 Cannon . | . . Launcher . | . . Special . | . . Kinetic 6 | . 6 Thermal 6 | . 6 Explosive . | . . Electromagnetic . | . . Robot Hit Streak 8 | . 8 Robot Miss Streak 1 | . 1 Penetration Max . | . . Secondary Targets . | . . Shots Hit Robots 10 | . 10 Core Hits 6 | . 6 Critical Kills . | . . Critical Parts Destroyed . | . . Critical Strikes . | . . Melee Attacks . | . . Impact . | . . Slashing . | . . Piercing . | . . Sneak Attacks . | . . Combat Hostiles . | . . Follow-up Attacks . | . . Damage Inflicted 110 | . 110 Guns 110 | . 110 Cannons . | . . Explosions . | . . Melee . | . . Ramming . | . . Kinetic 46 | . 46 Thermal 64 | . 64 Explosive . | . . Electromagnetic . | . . Impact . | . . Slashing . | . . Piercing . | . . Highest Corruption . | . . Average Corruption . | . . Corruption Purged . | . . Corruption Blocked . | . . Overload Shots . | . . Overflow Damage . | . . Projectiles . | . . Explosions . | . . Melee . | . . Knockbacks . | . . Impact . | . . Kinetic . | . . Secondary . | . . Self-Inflicted Damage . | . . Shots . | . . Rammed . | . . Targets Rammed . | . . Kicked . | . . Crushed . | . . Highest Temperature 73 | . 73 Average Temperature 41 | . 41 Received Heat Transfer 42 | . 42 Siege Activations . | . . Robots Corrupted . | . . Combat Hostiles . | . . Parts Fried . | . . Impact Corruptions . | . . Robots Melted . | . . Combat Hostiles . | . . Parts Melted . | . . Heat Transferred 150 | . 150 Parts Sabotaged . | . . Parts Stolen . | . . Parts Stripped . | . . Power Chain Reactions . | . . Missiles Intercepted . | . . Alert | -11 -10 ------- Run | Jun Mat Peak Influence 110 | . 110 Initial . | . . Average 53 | . 53 Maximum Alert Level . | . . Low Security (%) 100 | . 100 Level 1 . | . . Level 2 . | . . Level 3 . | . . Level 4 . | . . Level 5 . | . . High Security . | . . Max Security . | . . Squads Dispatched . | . . Investigation . | . . Extermination . | . . Reinforcement . | . . Assault . | . . Garrison . | . . Intercept . | . . Searches Triggered . | . . Construction Impeded . | . . Haulers Reinforced . | . . Active Scanning Responses . | . . Cargo Convoy Interrupts . | . . Stealth | -11 -10 --------- Run | Jun Mat Distress Signals 1 | . 1 Communications Jammed . | . . Distress Signals . | . . Times Spotted 8 | . 8 Peak Tracking Total 5 | . 5 Tactical Retreats 1 | . 1 Traps | -11 -10 ------- Run | Jun Mat Traps Triggered . | . . Indirectly . | . . Trap Hack Attempts . | . . Triggered . | . . Disarmed . | . . Reprogrammed . | . . Reused . | . . Traps Extracted . | . . Installed . | . . Triggered . | . . Machines | -11 -10 ---------- Run | Jun Mat Machines Disabled . | . . Max in Single Turn . | . . Machines Repaired . | . . Machines Sabotaged . | . . Overloaded Fab Kills . | . . Hacking | -11 -10 --------- Run | Jun Mat Machines Accessed . | . . Terminals . | . . Fabricators . | . . Repair Stations . | . . Recycling Units . | . . Scanalyzers . | . . Garrison Access . | . . Total Hacks . | . . Successful . | . . Failed . | . . Catastrophic . | . . Database Lockouts . | . . Manual . | . . Terminals . | . . Fabricators . | . . Repair Stations . | . . Recycling Units . | . . Scanalyzers . | . . Garrison Access . | . . Terminal Hacks . | . . Fabricator Hacks . | . . Repair Station Hacks . | . . Recycling Unit Hacks . | . . Scanalyzer . | . . Garrison Access Hacks . | . . Unauthorized Hacks . | . . Terminals . | . . Fabricators . | . . Repair Stations . | . . Recycling Units . | . . Scanalyzers . | . . Garrison Access . | . . Data Cores Recovered . | . . Used . | . . Hacking Detections . | . . Full Trace Events . | . . Feedback Events . | . . Feedback Blocked . | . . Robot Schematics Acquired . | . . Robots Built . | . . Authchips . | . . Time . | . . Total Robot Build Rating . | . . Part Schematics Acquired . | . . Parts Built . | . . Authchips . | . . Time . | . . Total Part Build Rating . | . . Parts Repaired . | . . Time . | . . Parts Recycled . | . . Recycled Matter . | . . Retrieved Matter . | . . Retrieved Components . | . . Parts Scanalyzed . | . . Part Schematics Acquired . | . . Parts Damaged . | . . Bothacking | -11 -10 ------------ Run | Jun Mat Used RIF Installer . | . . Robots Hacked . | . . Non-combat . | . . Combat . | . . Robot Hacks Applied . | . . Relay Couplers Released . | . . Fabnet Peak Effective % . | . . Robots Rewired . | . . Allies Hacked . | . . Hacks Repelled . | . . Allies | -11 -10 -------- Run | Jun Mat Total Allies 1 | . 1 Largest Group 1 | . 1 Highest-Rated Group 54 | . 54 Highest-Rated Ally 54 | . 54 Total Orders . | . . Ally Attacks 15 | . 15 Total Damage 169 | . 169 Kills 1 | . 1 Allies Corrupted . | . . Allies Melted . | . . Intel | -11 -10 ------- Run | Jun Mat Robot Analysis Total . | . . Derelict Logs Recovered . | . . Drone Launches . | . . Drone Recoveries . | . . Exploration | -11 -10 ------------- Run | Jun Mat Turns Passed 122 | . 122 Spaces Moved 62 | 1 61 Core . | . . Treads . | . . Legs 62 | 1 61 Wheels . | . . Hover . | . . Flight . | . . Fastest Speed 120 | 120 120 Average Speed 133 | 120 133 Slowest Speed 190 | 120 190 Overloaded Moves . | . . Propulsion Burnouts . | . . Robots Hopped . | . . Cave-ins Triggered . | . . Exploration Rate (%) 5 | 2 9 Regions Visited 1 Branch Regions . Pre-discovered Areas . | . . Known Exits Taken 1 | 1 . Unknown Exits Taken . | . . Scrap Searched . | . . Spaces Dug . | . . Terrain Destroyed . | . . Melee . | . . Projectile . | . . AOE . | . . Terrain Rammed . | . . Walls Destroyed . | . . Machines Disabled . | . . Actions | -11 -10 --------- Run | Jun Mat Total 91 | . 91 Wait 22 | . 22 Move 61 | . 61 Hop . | . . Pick Up 1 | . 1 Fast Attach . | . . Attach . | . . Detach . | . . Swap 1 | . 1 Drop . | . . Fire 6 | . 6 Melee . | . . Ram . | . . Kick . | . . Crush . | . . Escape Stasis . | . . Rewire . | . . Trap . | . . Miscellaneous . | . . Route ------- -11/Junkyard -10/Materials History --------- Turn | Location | Event 1 | -11/Junkyard | Identified exit to Materials 1 | -11/Junkyard | Discovered exit to Materials (range 0) 1 | -11/Junkyard | Entered Materials 1 | -10/Materials | Evolved 1 slot: Utility x1 100 | -10/Materials | Core integrity fell below 50% 112 | -10/Materials | Core integrity fell below 20% 123 | -10/Materials | Core destroyed Last Messages --------------- Acquired 1 matter. A-02 Transporter destroyed. R-06 Scavenger collects Aluminum Leg. R-06 Scavenger collects Ion Engine. Player 2 attaches Sml. Laser. Player 2: "Whew, and I was getting worried I'd be defenseless FOREVER." Player 2 suffers critical hit (Burn). Acquired Lrg. Storage Unit. K-01 Serf collects debris. Player 2 removes Heat Sink. K-01 Serf collects debris. Player 2 drops Heat Sink. Player 2 removes Sml. Laser. Player 2 removes Med. Storage Unit. Player 2 drops Med. Storage Unit. Player 2 attaches Sml. Laser. K-01 Serf collects debris. Player 2: "Sure would be nice to find a propulsion unit around here..." K-01 Serf collects debris. Player 2 attaches Sml. Laser. Map ----- +----------------------------------------------------+ | ??????????????????????????????????????? | | ????????????????????????????#####?????? | | ????????????????????????????# #?????? | | ????????????????????????????# #?????? | | ????????????????????????????# #?????? | | ????????????????????????????# #?????? | | ????????????????????????????# #?????? | | ????????????????????????????# #?????? | | ????????????????????????????# #?????? | | ????????????????????????????# #?????? | | ????????????????????????????# #?????? | | ????????????????????????????# #?????? | | ????????????????????????????# #?????? | | ????????????????????????????# #?????? | | ????????????????????????????# #?????? | | ???????????????#######?????## ##????? | | ???????????????# ####### #????? | | ???????????????# #????? | | ???????????????# ^ % #????? | | ???????????????# ^ #????? | | ???????????????# ^^ ### #????? | | ???????????????## #?#######????? | | ?????????????####^ #????????????? | | ????????????##! %%%%%% #????????????? | | ????????????# %%%%" %###??????????? | | ????????????# """" @ #??????????? | | ????????????#! +??????????? | | ????????????#! k ! #??????????? | | ????????????##! ########![!#??????????? | | ?????????????####??????#gg!#??????????? | | ???????????????????????#@g #??????????? | | ???????????????????????# #??????????? | | ???????????????????????# #??????????? | | ???????????????????????# #??????????? | | ???????????????????????# #??????????? | | ??????????????????????? ??????????? | | ??????????????????????? u ??????????? | | ??????????????????????? +?????????? | | ??????????????????????? #?????????? | | ??????????????????????? ! #?????????? | | ???????????????????????#####??????????? | | ??????????????????????????????????????? | | ??????????????????????????????????????? | | ??????????????????????????????????????? | | ??????????????????????????????????????? | | ??????????????????????????????????????? | | ??????????????????????????????????????? | | ??????????????????????????????????????? | | ??????????????????????????????????????? | | ??????????????????????????????????????? | +----------------------------------------------------+ Best States ------------- Heat Dissipation 25 Energy Generation 10 Energy Capacity 250 Matter Stores 300 Matter Capacity 300 Sight Range 16 Terrain Scan Density 10 Resistance: KI 35 Resistance: TH 35 Resistance: EX 35 Resistance: EM 35 Resistance: I 35 Resistance: S 35 Resistance: P 35 Core Shielding 20 Evasion (%) 50 Offensive Hacking 20 Item Schematics ----------------- None Robot Schematics ------------------ None Fabricated ------------ Nothing Alien Tech Used ----------------- None Achievements -------------- None Challenges ------------ None Player 2 | -11 -10 ---------- Run | Jun Mat Slots Evolved . | . . Power . | . . Propulsion . | . . Utility . | . . Weapon . | . . Parts Attached 7 | . 7 Parts Lost 3 | . 3 Damage Taken 543 | . 543 Core 253 | . 253 Player 2/Cogmind (%) 96 | . 96 Absorbed by Shields . | . . Damage Inflicted 169 | . 169 Player 2/Cogmind (%) 60 | . 60 Combat Hostiles Destroyed 1 | . 1 Player 2/Cogmind (%) 33 | . 33 Game ------ Seed DroneBehemothScreen Manual? 0 Play Time 00:02:45 Cumulative 100.4 hours Start 2024.01.05 @ 15:04:42 End 2024.01.05 @ 15:06:15 Sessions 1 Manual Loads 0 Difficulty Explorer Special Mode AFD2020/Player2 Game No. 171 Rogue 89 Adventurer 0 Explorer 82 Win Type - Total 0 Types 0/0/0/0/0/0/0/0/0 Lore% 31 Gallery% 30 Achievement% 24 Wizard Run 0 Options --------- ASCII 0 Keyboard 0 Movement Mouse Keybinds 0 Fullscreen 1 Font 18/SmallcapsGlow Map View 76x50 Tactical HUD 0 Map Filters NONE Filters NONE Steam 1 RUN: b00fbcf5-4d29-4c44-88b4-658f642b7514